Cogmind - Beta 12 @@@ ROGUE MODE // 2024.01.12 @ 01:38:58 Player: puppuppit Result: Destroyed by D-53 Grenadier with Mini Grenade Launcher Performance ------------- Evolutions (0) 0 Regions Visited (2) 400 Robots Destroyed (28) 140 Value Destroyed (435) 435 Prototype IDs (3) 60 Alien Tech Used (0) 0 Bonus (0) 0 TOTAL SCORE: 1035 Bonus ------- None Cogmind --------- Core Integrity 0/250 Matter 77/300 Energy 98/100 System Corruption 1% Temperature Cool (0) Movement Core (50) Location -10/Mines Parts ------- > --- POWER (1) -------- (None) > --- PROPULSION (2) --- (None) > --- UTILITY (2) ------ (None) > --- WEAPON (2) ------- (None) > --- INVENTORY (5) ---- Light Ion Engine Light Cannon Rocket Launcher Rocket Launcher Peak State ------------ > --- POWER ------------ Light Ion Engine > --- PROPULSION ------- Wheel Wheel > --- UTILITY ---------- Medium Storage Unit Improved Terrain Scanner > --- WEAPON ----------- Light Cannon Light Cannon > --- INVENTORY -------- Ion Engine Light Ion Engine Wheel Wheel Wheel Medium Laser Light Cannon Light Cannon Light Cannon Light Cannon [Rating: 10] Favorites ----------- Power Light Ion Engine Engine Light Ion Engine Propulsion Wheel Wheel Wheel Utility Medium Storage Unit Device Structural Scanner Storage Medium Storage Unit Processor Transport Network Coupler Hackware Hacking Suite Weapon Light Cannon Energy Gun Medium Laser Ballistic Cannon Light Cannon Launcher Grenade Launcher Build | -11 -10 -10 ------- Run | Jun Mat Min Slots Evolved . | . . . Power . | . . . Propulsion . | . . . Utility . | . . . Weapon . | . . . Parts Attached 24 | 7 13 4 Power 4 | 1 3 . Engine 4 | 1 3 . Core . | . . . Reactor . | . . . Propulsion 4 | 2 1 1 Treads . | . . . Leg . | . . . Wheel 4 | 2 1 1 Hover . | . . . Flight . | . . . Utility 7 | 2 5 . Device 2 | 1 1 . Storage 2 | 1 1 . Processor 2 | . 2 . Hackware 1 | . 1 . Protection . | . . . Artifact . | . . . Weapon 9 | 2 4 3 Energy Gun 2 | 2 . . Energy Cannon . | . . . Ballistic Gun . | . . . Ballistic Cannon 5 | . 3 2 Launcher 2 | . 1 1 Special Weapon . | . . . Impact Weapon . | . . . Slashing Weapon . | . . . Piercing Weapon . | . . . Special Melee Weapon . | . . . Unidentified Prototypes . | . . . Parts Lost 5 | . 1 4 Power 1 | . . 1 Propulsion 2 | . . 2 Utility 1 | . 1 . Weapon 1 | . . 1 Highest Loss Streak 3 | . 1 3 To Critical Strikes . | . . . Average Slot Usage (%) 92 | . 97 54 Engine 13 | . 14 6 Wheel 26 | . 28 16 Device 4 | . 5 . Storage 13 | . 14 7 Processor 5 | . 4 7 Hackware 1 | . 1 . Energy Gun 1 | . 2 . Ballistic Cannon 22 | . 24 8 Launcher 1 | . . 6 Naked Turns 43 | . . 43 Heaviest Build 20 | 13 20 20 Greatest Support 20 | 20 20 20 Greatest Overweight (x) 1 | 1 . . Average Overweight (x) . | . . . Largest Inventory Capacity 10 | 8 10 10 Average Capacity 9 | 7 9 7 Most Carried 10 | 4 10 10 Average Carried 8 | 1 9 7 Final Capacity 10 | 8 10 5 Final Carried 10 | 4 10 4 Class Distribution -------------------- 100% | Mutant Dominant Class ---------------- Mutant | -10/Materials Mutant | -10/Mines Resources | -11 -10 -10 ----------- Run | Jun Mat Min Matter Collected 713 | 216 485 12 Remotely . | . . . Salvage Created 657 | 139 472 46 Parts 57 | 6 51 . Haulers Intercepted 2 | . 2 . Recyclers Shooed 1 | . 1 . Parts Field Recycled . | . . . Retrieved Matter . | . . . Parts Self-Destructed . | . . . Prevented . | . . . Kills | -11 -10 -10 ------- Run | Jun Mat Min Combat Hostiles Destroyed 29 | . 13 16 Guns 1 | . 1 . Cannons 8 | . 8 . AOE 20 | . 4 16 Classes Destroyed 10 | 2 7 1 Worker 4 | . 4 . Builder 1 | . 1 . Tunneler 3 | 2 1 . Hauler 2 | . 2 . Recycler 1 | 1 . . Operator 1 | . 1 . Watcher 3 | . 3 . Swarmer 6 | . 6 . Grunt 7 | . 7 . Assembled 16 | . . 16 Best Kill Streak 16 | 2 6 16 Combat Bots Only 16 | . 5 16 Max Kills in Single Turn 7 | 1 4 7 Gunslinging . | . . . Exploded 7 | . 4 7 Melee . | . . . Uniques/NPCs Destroyed . | . . . Combat | -11 -10 -10 -------- Run | Jun Mat Min Damage Taken 879 | . 286 593 Core 276 | . 72 204 Absorbed by Shields . | . . . Core Remaining (%) 100 | 100 . . Volleys Fired 77 | 11 57 9 Largest 2 | 2 2 2 Hottest 100 | 100 80 70 Shots Fired 146 | 22 106 18 Gun 32 | 22 10 . Cannon 105 | . 93 12 Launcher 9 | . 3 6 Special . | . . . Kinetic 105 | . 93 12 Thermal 32 | 22 10 . Explosive 9 | . 3 6 Electromagnetic . | . . . Robot Hit Streak 13 | 10 13 2 Robot Miss Streak 5 | 2 5 5 Penetration Max . | . . . Secondary Targets . | . . . Shots Hit Robots 70 | 14 50 6 Core Hits 56 | 4 25 27 Critical Kills . | . . . Critical Parts Destroyed . | . . . Critical Strikes 2 | . 2 . Blast 2 | . 2 . Melee Attacks . | . . . Impact . | . . . Slashing . | . . . Piercing . | . . . Sneak Attacks . | . . . Combat Hostiles . | . . . Follow-up Attacks . | . . . Damage Inflicted 2316 | 174 1109 1033 Guns 248 | 174 74 . Cannons 919 | . 837 82 Explosions 1149 | . 198 951 Melee . | . . . Ramming . | . . . Kinetic 919 | . 837 82 Thermal 248 | 174 74 . Explosive 1149 | . 198 951 Electromagnetic . | . . . Impact . | . . . Slashing . | . . . Piercing . | . . . Highest Corruption 1 | . 1 1 Average Corruption 1 | . 1 1 Corruption Purged . | . . . Corruption Blocked . | . . . Effects 2 | . 2 . Energy Discharges 1 | . 1 . Weapon Failures 1 | . 1 . Overload Shots . | . . . Overflow Damage 31 | . 28 3 Projectiles 13 | . 13 . Explosions 18 | . 15 3 Melee . | . . . Knockbacks 11 | . 10 1 Impact . | . . . Kinetic 11 | . 10 1 Secondary . | . . . Self-Inflicted Damage 27 | . 27 . Shots 1 | . 1 . Rammed . | . . . Targets Rammed . | . . . Kicked . | . . . Crushed . | . . . Highest Temperature 230 | 230 114 76 Average Temperature 45 | 111 25 44 Received Heat Transfer 151 | . 111 40 Siege Activations . | . . . Robots Corrupted . | . . . Combat Hostiles . | . . . Parts Fried . | . . . Impact Corruptions . | . . . Robots Melted . | . . . Combat Hostiles . | . . . Parts Melted . | . . . Heat Transferred 740 | 518 222 . Parts Sabotaged . | . . . Parts Stolen . | . . . Parts Stripped . | . . . Power Chain Reactions . | . . . Missiles Intercepted . | . . . Alert | -11 -10 -10 ------- Run | Jun Mat Min Peak Influence 340 | 15 340 172 Initial 132 | . 9 132 Average 190 | 5 213 157 Maximum Alert Level 1 | . 1 . Low Security (%) 56 | 100 45 100 Level 1 43 | . 54 . Level 2 . | . . . Level 3 . | . . . Level 4 . | . . . Level 5 . | . . . High Security . | . . . Max Security . | . . . Squads Dispatched 3 | . 3 . Investigation 2 | . 2 . Extermination . | . . . Reinforcement 1 | . 1 . Assault . | . . . Garrison . | . . . Intercept . | . . . Searches Triggered . | . . . Construction Impeded . | . . . Haulers Reinforced . | . . . Active Scanning Responses . | . . . Cargo Convoy Interrupts . | . . . Stealth | -11 -10 -10 --------- Run | Jun Mat Min Distress Signals . | . . . Communications Jammed . | . . . Distress Signals . | . . . Times Spotted 41 | . 20 21 Peak Tracking Total 19 | . 5 19 Tactical Retreats 3 | . 1 2 Traps | -11 -10 -10 ------- Run | Jun Mat Min Traps Triggered . | . . . Indirectly . | . . . Trap Hack Attempts . | . . . Triggered . | . . . Disarmed . | . . . Reprogrammed . | . . . Reused . | . . . Traps Extracted . | . . . Installed . | . . . Triggered . | . . . Machines | -11 -10 -10 ---------- Run | Jun Mat Min Machines Disabled 2 | . 2 . Max in Single Turn 2 | . 2 . Machines Repaired . | . . . Machines Sabotaged . | . . . Overloaded Fab Kills . | . . . Hacking | -11 -10 -10 --------- Run | Jun Mat Min Machines Accessed 8 | . 8 . Terminals 7 | . 7 . Fabricators . | . . . Repair Stations 1 | . 1 . Recycling Units . | . . . Scanalyzers . | . . . Garrison Access . | . . . Total Hacks 21 | . 21 . Successful 9 | . 9 . Failed 12 | . 12 . Catastrophic 4 | . 4 . Database Lockouts . | . . . Manual 4 | . 4 . Terminals 19 | . 19 . Fabricators . | . . . Repair Stations 2 | . 2 . Recycling Units . | . . . Scanalyzers . | . . . Garrison Access . | . . . Terminal Hacks 8 | . 8 . Prototype ID Bank 2 | . 2 . Emergency Access Points 1 | . 1 . Scanalyzer Index 1 | . 1 . Alert Level 1 | . 1 . Investigation Status 1 | . 1 . Assault Status 1 | . 1 . Recall Reinforcements 1 | . 1 . Fabricator Hacks . | . . . Repair Station Hacks 1 | . 1 . Scan Component 1 | . 1 . Recycling Unit Hacks . | . . . Scanalyzer . | . . . Garrison Access Hacks . | . . . Unauthorized Hacks . | . . . Terminals . | . . . Fabricators . | . . . Repair Stations . | . . . Recycling Units . | . . . Scanalyzers . | . . . Garrison Access . | . . . Data Cores Recovered . | . . . Used . | . . . Hacking Detections 8 | . 8 . Full Trace Events 3 | . 3 . Feedback Events 2 | . 2 . Corruption 1 | . 1 . Hackware Fried 1 | . 1 . Feedback Blocked . | . . . Robot Schematics Acquired . | . . . Robots Built . | . . . Authchips . | . . . Time . | . . . Total Robot Build Rating . | . . . Part Schematics Acquired . | . . . Parts Built . | . . . Authchips . | . . . Time . | . . . Total Part Build Rating . | . . . Parts Repaired . | . . . Time . | . . . Parts Recycled . | . . . Recycled Matter . | . . . Retrieved Matter . | . . . Retrieved Components . | . . . Parts Scanalyzed . | . . . Part Schematics Acquired . | . . . Parts Damaged . | . . . Bothacking | -11 -10 -10 ------------ Run | Jun Mat Min Used RIF Installer . | . . . Robots Hacked . | . . . Non-combat . | . . . Combat . | . . . Robot Hacks Applied . | . . . Relay Couplers Released . | . . . Fabnet Peak Effective % . | . . . Robots Rewired . | . . . Allies Hacked . | . . . Hacks Repelled . | . . . Allies | -11 -10 -10 -------- Run | Jun Mat Min Total Allies . | . . . Largest Group . | . . . Highest-Rated Group . | . . . Highest-Rated Ally . | . . . Total Orders . | . . . Ally Attacks . | . . . Total Damage . | . . . Kills . | . . . Allies Corrupted . | . . . Allies Melted . | . . . Intel | -11 -10 -10 ------- Run | Jun Mat Min Robot Analysis Total . | . . . Derelict Logs Recovered . | . . . Drone Launches . | . . . Drone Recoveries . | . . . Exploration | -11 -10 -10 ------------- Run | Jun Mat Min Turns Passed 968 | 76 775 117 Spaces Moved 893 | 35 712 146 Core 107 | 1 . 106 Treads . | . . . Legs . | . . . Wheels 786 | 34 712 40 Hover . | . . . Flight . | . . . Fastest Speed 50 | 50 80 50 Average Speed 76 | 80 80 58 Slowest Speed 95 | 95 80 80 Overloaded Moves . | . . . Propulsion Burnouts . | . . . Robots Hopped . | . . . Cave-ins Triggered . | . . . Exploration Rate (%) 51 | 4 94 55 Regions Visited 2 Branch Regions 1 Pre-discovered Areas . | . . . Known Exits Taken . | . . . Unknown Exits Taken 2 | 1 1 . Scrap Searched . | . . . Spaces Dug . | . . . Terrain Destroyed 44 | . 15 29 Melee . | . . . Projectile . | . . . AOE 44 | . 15 29 Terrain Rammed . | . . . Walls Destroyed . | . . . Machines Disabled . | . . . Actions | -11 -10 -10 --------- Run | Jun Mat Min Total 1033 | 57 817 159 Wait 2 | . 2 . Move 891 | 34 711 146 Hop . | . . . Pick Up 19 | 5 14 . Fast Attach 12 | 6 6 . Attach 3 | 1 . 2 Detach 3 | . 3 . Swap 9 | . 7 2 Drop 17 | . 17 . Fire 77 | 11 57 9 Melee . | . . . Ram . | . . . Kick . | . . . Crush . | . . . Escape Stasis . | . . . Rewire . | . . . Trap . | . . . Miscellaneous . | . . . Route ------- -11/Junkyard -10/Materials (discovered 5 exits: [*Mat x3] / [*Min x2]) -10/Mines History --------- Turn | Location | Event 19 | -11/Junkyard | Discovered new exit (range 15) 77 | -11/Junkyard | Entered Materials 86 | -10/Materials | Discovered new exit (range 16) 119 | -10/Materials | Discovered new exit (range 14) 347 | -10/Materials | Build established: Mutant 494 | -10/Materials | Discovered new exit (range 9) 603 | -10/Materials | Discovered new exit (range 15) 704 | -10/Materials | Discovered new exit (range 12) 705 | -10/Materials | Hacking Suite fried by hacking feedback 852 | -10/Materials | Entered Mines 853 | -10/Mines | Assembled infested the area 858 | -10/Mines | Assisted by a Guerilla fighting off Assembled 893 | -10/Mines | Destroyed 16 combat bots 908 | -10/Mines | Core integrity fell below 50% 915 | -10/Mines | Released all parts (5) 917 | -10/Mines | Core integrity fell below 20% 942 | -10/Mines | Lost 3 parts (1p1n1w) 969 | -10/Mines | Destroyed by D-53 Grenadier with Mini Grenade Launcher Last Messages --------------- 00899_ U-05 Engineer builds a Wall. 00902_ The unstable cave ceiling collapses. 00903_ U-05 Engineer lays Concrete. 00907_ 52-ZMI(h) destroyed. 00907_ U-05 Engineer destroyed. 00907_ Lgt. Ion Engine destroyed. 00908_ D-53 Grenadier knocked back. 00910_ Lgt. Cannon destroyed. 00911_ Wheel destroyed. 00915_ Released Visual Processing Unit. 00915_ Released Wheel. 00915_ Released Med. Storage Unit. 00915_ Released Lgt. Cannon. 00918_ The unstable cave ceiling collapses. 00918_ Lgt. Cannon crushed. 00920_ A derelict emerges from the shadows. 00921_ RA-HX0(g): "Some of my friends down here think you need a mining laser when you travel the depths." 00933_ T-07 Excavator is excavating. 00969_ Wheel destroyed. Map ----- +----------------------------------------------------+ | ##??#? ???###??????????????????????????? | | ####?## ## #######???????????????????? | | ##??## ??# ##???#######????????? | | #??# ????# ##?# #????????? | | #?## ?????# ## #????????? | | #?# ???????????# #?????????? | | ##?# #??????????## #??????????? | | ###??# #???????????## ##??????????? | | ##????# ##???????????## #???????????? | | #?????# ####????????## ##???????????? | | #??????# ##??????## ##????????????? | | #???????# ###???## ##?????????????? | | #????????# """ ##??# #??????????????? | | ########## """ #??# ##??????????????? | | """ #??# # ##???????????????? | | #### ## #????????????????? | | ########## ### ## ## #????????????????? | | ?????????####?## ### #????????????????? | | ???????????????## #?# #####????????????? | | ????????????????## ## #????????????? | | ?????????????????# d ######## #??####??????? | | ?????????????????# #??????# #?## ##?????? | | ?????????????????## ####?### ### #?????? | | ??????????????????# ## d # ### ## #?????? | | ??????????????????# ## ## #?????? | | ??????????????????# @ """ #?????? | | ??????????????????##### """ ##????? | | ??????????????????????# # """ ##???? | | ??????????????????????### ## ## ##??? | | ???????????????????????# ## ####### #??? | | ???????????????????????# t # #?????## #??? | | ???????????????????????# #### #??????# #?? | | ??????????????????????? ???## ##??????# #?? | | ??????????????????????###????####???????# #?? | | ????????????????????????????????????????## ##?? | | ?????????????????????????????????????????####??? | | ???????????????????????????????????????????????? | | ???????????????????????????????????????????????? | | ???????????????????????????????????????????????? | | ???????????????????????????????????????????????? | | | | | | | | | | | | | | | | | | | | | +----------------------------------------------------+ Best States ------------- Heat Dissipation 25 Energy Generation 10 Energy Capacity 125 Matter Stores 300 Matter Capacity 300 Sight Range 18 Terrain Scan Range 16 Terrain Scan Density 10 Evasion (%) 50 Offensive Hacking 10 Item Schematics ----------------- None Robot Schematics ------------------ None Fabricated ------------ Nothing Alien Tech Used ----------------- None Achievements -------------- Exterminator Challenges ------------ None Game ------ Seed SupersonicDynamicCanceller Manual? 0 Play Time 00:19:54 Cumulative 45.7 hours Start 2024.01.12 @ 01:21:34 End 2024.01.12 @ 01:38:58 Sessions 1 Manual Loads 0 Difficulty Rogue Special Mode None Game No. 24 Rogue 24 Adventurer 0 Explorer 0 Win Type - Total 0 Types 0/0/0/0/0/0/0/0/0 Lore% 49 Gallery% 45 Achievement% 37 Wizard Run 0 Options --------- ASCII 0 Keyboard 1 Movement Arrows Keybinds 0 Fullscreen 1 Font 12/Proggy Map View 83x54 Tactical HUD 1 Map Filters NONE Filters NONE Steam 0 RUN: d3def5da-3ee8-479d-8258-f39cae247274